Cogmind - Beta 13 @@@ ROGUE MODE // 2024.04.12 @ 22:43:13 Player: maddiematics Result: Destroyed by G-47 Trooper with Particle Gun Performance ------------- Evolutions (3) 1500 Regions Visited (6) 1200 Robots Destroyed (12) 60 Value Destroyed (358) 358 Prototype IDs (3) 60 Alien Tech Used (0) 0 Bonus (50) 50 TOTAL SCORE: 3228 Bonus ------- Follower Combat Kills 50 Cogmind --------- Core Integrity 0/700 Matter 297/300 Energy 98/100 System Corruption 0% Temperature Cool (9) Movement Core (50) Location -7/Factory Parts ------- > --- POWER (2) -------- (None) > --- PROPULSION (4) --- (None) > --- UTILITY (5) ------ (None) > --- WEAPON (2) ------- (None) > --- INVENTORY (5) ---- Advanced Weight Redist. System Kinecellerator Hardened Light Armor Plating Component Analysis Suite Particle Gun Peak State ------------ > --- POWER ------------ Ion Engine Light Deuterium Engine > --- PROPULSION ------- Medium Treads Medium Treads Medium Treads > --- UTILITY ---------- Small Storage Unit Experimental Sensor Array Bomb Drone Bay > --- WEAPON ----------- Improved Spread Laser Improved Spread Laser > --- INVENTORY -------- Ion Engine Medium Treads Wheel Improved Spread Laser [Rating: 51] Favorites ----------- Power Light Ion Engine Engine Light Ion Engine Propulsion Medium Treads Treads Medium Treads Leg Aluminum Leg Wheel Wheel Flight Unit Flight Unit Utility Improved Light Armor Plating Device Experimental Sensor Array Storage Small Storage Unit Protection Improved Light Armor Plating Weapon Light Assault Rifle Energy Gun Improved Spread Laser Ballistic Gun Light Assault Rifle Launcher Grenade Launcher Build | -11 -10 -10 -9 -9 -8 -7 ------- Run | Yrd Mat Min Mat Min Mat Fac Slots Evolved 6 | . . . 2 . 2 2 Power 1 | . . . . . 1 . Propulsion 2 | . . . . . 1 1 Utility 3 | . . . 2 . . 1 Weapon . | . . . . . . . Parts Attached 38 | 5 4 5 2 5 14 3 Power 8 | 1 . . . 3 4 . Engine 8 | 1 . . . 3 4 . Core . | . . . . . . . Reactor . | . . . . . . . Propulsion 11 | 2 . 4 . . 4 1 Treads 4 | . . . . . 3 1 Leg 2 | 2 . . . . . . Wheel 2 | . . 2 . . . . Hover . | . . . . . . . Flight 3 | . . 2 . . 1 . Utility 8 | . 2 1 2 . 3 . Device 2 | . . 1 1 . . . Storage 3 | . 2 . 1 . . . Processor . | . . . . . . . Hackware . | . . . . . . . Protection 3 | . . . . . 3 . Artifact . | . . . . . . . Weapon 11 | 2 2 . . 2 3 2 Energy Gun 5 | . . . . . 3 2 Energy Cannon . | . . . . . . . Ballistic Gun 5 | 2 1 . . 2 . . Ballistic Cannon . | . . . . . . . Launcher 1 | . 1 . . . . . Special Weapon . | . . . . . . . Impact Weapon . | . . . . . . . Slashing Weapon . | . . . . . . . Piercing Weapon . | . . . . . . . Special Melee Weapon . | . . . . . . . Unidentified Prototypes 3 | . . 1 1 . 1 . Parts Lost 5 | . 1 1 . . 2 1 Power . | . . . . . . . Propulsion 1 | . . 1 . . . . Utility 2 | . . . . . 1 1 Weapon 2 | . 1 . . . 1 . Highest Loss Streak 2 | . 1 1 . . 2 1 To Critical Strikes . | . . . . . . . Average Slot Usage (%) 79 | . 79 73 61 78 91 78 Engine 14 | . 14 14 11 11 17 12 Treads 10 | . . . . . 24 25 Leg 3 | . 28 6 . . . . Flight 11 | . . 20 22 22 2 . Device 11 | . . 8 22 22 14 6 Storage 7 | . 10 10 6 11 5 . Protection 5 | . . . . . 8 19 Energy Gun 5 | . . . . . 11 12 Ballistic Gun 7 | . 17 11 . 12 5 . Naked Turns 65 | . . . . . . 65 Heaviest Build 32 | 5 12 13 17 19 32 28 Greatest Support 112 | 20 20 20 8 8 84 112 Greatest Overweight (x) 2 | . . 1 2 2 1 . Average Overweight (x) . | . . . 1 2 . . Largest Inventory Capacity 8 | 5 8 8 8 8 8 5 Average Capacity 6 | 5 6 6 6 8 6 5 Most Carried 8 | 4 6 8 3 7 8 5 Average Carried 3 | 2 4 3 1 3 3 3 Final Capacity 8 | 5 8 5 8 8 5 5 Final Carried 6 | 4 6 2 3 6 2 5 Class Distribution -------------------- 97% | Mutant Dominant Class ---------------- Mutant | -10/Materials Mutant | -10/Mines Mutant | -9/Materials Mutant | -9/Mines Mutant | -8/Materials Mutant | -7/Factory Resources | -11 -10 -10 -9 -9 -8 -7 ----------- Run | Yrd Mat Min Mat Min Mat Fac Matter Collected 675 | 260 55 98 . 105 147 10 Remotely . | . . . . . . . Salvage Created 280 | 47 33 27 . 11 162 . Parts 24 | 1 6 3 . 4 10 . Haulers Intercepted . | . . . . . . . Recyclers Shooed 1 | . 1 . . . . . Parts Field Recycled . | . . . . . . . Retrieved Matter . | . . . . . . . Parts Self-Destructed . | . . . . . . . Prevented . | . . . . . . . Kills | -11 -10 -10 -9 -9 -8 -7 ------- Run | Yrd Mat Min Mat Min Mat Fac Combat Hostiles Destroyed 10 | 1 2 2 . 1 4 . Guns 8 | 1 . 2 . 1 4 . AOE 2 | . 2 . . . . . Classes Destroyed 5 | 1 2 1 . . 1 . Worker 1 | . 1 . . . . . Watcher 1 | . 1 . . . . . Swarmer 3 | . . 2 . 1 . . Grunt 6 | 1 2 . . . 3 . Sentry 1 | . . . . . 1 . Best Kill Streak 4 | 1 4 2 . 1 3 . Combat Bots Only 3 | 1 2 2 . 1 3 . Max Kills in Single Turn 2 | 1 1 1 . 1 2 . Gunslinging 1 | . . . . . 1 . Exploded 1 | . 1 . . . . . Melee . | . . . . . . . Uniques/NPCs Destroyed . | . . . . . . . Combat | -11 -10 -10 -9 -9 -8 -7 -------- Run | Yrd Mat Min Mat Min Mat Fac Hostile Shots Fired 259 | 6 8 32 . 27 14 172 Missed 90 | 2 1 7 . 7 1 72 Damage Taken 2304 | 44 175 209 . 282 523 1071 Core 895 | 12 42 16 . 10 100 715 Absorbed by Shields . | . . . . . . . Core Remaining (%) 86 | 95 . 72 . 97 81 . Volleys Fired 38 | 5 12 9 . 1 7 4 Largest 2 | 2 2 2 . 2 2 2 Hottest 155 | 40 50 40 . 40 150 155 Shots Fired 70 | 10 20 18 . 2 12 8 Gun 62 | 10 12 18 . 2 12 8 Cannon . | . . . . . . . Launcher 8 | . 8 . . . . . Special . | . . . . . . . Kinetic 42 | 10 12 18 . 2 . . Thermal 20 | . . . . . 12 8 Explosive 8 | . 8 . . . . . Electromagnetic . | . . . . . . . Robot Hit Streak 6 | 3 6 1 . 3 5 5 Robot Miss Streak 6 | 1 1 5 . . 3 6 Penetration Max . | . . . . . . . Secondary Targets 2 | . . . . . 2 . Max Gunslinging Chain 1 | . . . . . 1 . Shots Hit Robots 42 | 6 9 6 . 2 12 7 Core Hits 45 | 4 7 4 . 2 22 6 Critical Kills . | . . . . . . . Critical Parts Destroyed . | . . . . . . . Critical Strikes . | . . . . . . . Melee Attacks . | . . . . . . . Impact . | . . . . . . . Slashing . | . . . . . . . Piercing . | . . . . . . . Sneak Attacks . | . . . . . . . Combat Hostiles . | . . . . . . . Follow-up Attacks . | . . . . . . . Damage Inflicted 966 | 48 431 61 . 14 243 169 Guns 552 | 48 42 61 . 14 243 144 Cannons . | . . . . . . . Explosions 380 | . 380 . . . . . Melee . | . . . . . . . Ramming 34 | . 9 . . . . 25 Kinetic 165 | 48 42 61 . 14 . . Thermal 387 | . . . . . 243 144 Explosive 380 | . 380 . . . . . Electromagnetic . | . . . . . . . Impact . | . . . . . . . Slashing . | . . . . . . . Piercing . | . . . . . . . Highest Corruption 3 | . . . . . 3 . Average Corruption 3 | . . . . . 3 . Corruption Purged . | . . . . . . . Corruption Blocked . | . . . . . . . Effects 2 | . . . . . 2 . Matter Fused 2 | . . . . . 2 . Overload Shots . | . . . . . . . Overflow Damage 41 | . 41 . . . . . Projectiles . | . . . . . . . Explosions 41 | . 41 . . . . . Melee . | . . . . . . . Knockbacks 1 | . . . . . . 1 Impact 1 | . . . . . . 1 Kinetic . | . . . . . . . Secondary . | . . . . . . . Self-Inflicted Damage 97 | . 85 . . . . 12 Shots 3 | . 3 . . . . . Rammed 4 | . . . . . . 4 Targets Rammed 5 | . 1 . . . . 4 Kicked 1 | . 1 . . . . . Crushed . | . . . . . . . Highest Temperature 586 | 6 29 . . . 586 538 Average Temperature 198 | 6 12 . . . 243 262 Received Heat Transfer 741 | 24 51 . . 102 99 465 Effects 19 | . . . . . 16 3 Shutdowns 6 | . . . . . 4 2 Energy Bleed 2 | . . . . . 2 . Interference 2 | . . . . . 2 . Short Circuit 1 | . . . . . . 1 Damage (major) 8 | . . . . . 8 . Siege Activations . | . . . . . . . Robots Corrupted . | . . . . . . . Combat Hostiles . | . . . . . . . Parts Fried . | . . . . . . . Impact Corruptions . | . . . . . . . Robots Melted . | . . . . . . . Combat Hostiles . | . . . . . . . Parts Melted . | . . . . . . . Heat Transferred 425 | . . . . . 210 215 Parts Sabotaged . | . . . . . . . Parts Stolen . | . . . . . . . Parts Stripped . | . . . . . . . Power Chain Reactions . | . . . . . . . Alert | -11 -10 -10 -9 -9 -8 -7 ------- Run | Yrd Mat Min Mat Min Mat Fac Peak Influence 145 | 20 118 83 42 51 145 65 Initial 65 | . 13 43 . 16 . 65 Average 33 | 2 55 32 3 30 29 54 Maximum Alert Level . | . . . . . . . Low Security (%) 100 | 100 100 100 100 100 100 100 Level 1 . | . . . . . . . Level 2 . | . . . . . . . Level 3 . | . . . . . . . Level 4 . | . . . . . . . Level 5 . | . . . . . . . High Security . | . . . . . . . Max Security . | . . . . . . . Squads Dispatched 4 | . . . 1 . 2 1 Investigation 2 | . . . . . 1 1 Extermination . | . . . . . . . Reinforcement 2 | . . . 1 . 1 . Assault . | . . . . . . . Garrison . | . . . . . . . Intercept . | . . . . . . . Searches Triggered . | . . . . . . . Construction Impeded . | . . . . . . . Haulers Reinforced . | . . . . . . . Active Scanning Responses . | . . . . . . . Cargo Convoy Interrupts . | . . . . . . . Stealth | -11 -10 -10 -9 -9 -8 -7 --------- Run | Yrd Mat Min Mat Min Mat Fac Distress Signals 5 | . 1 . 1 . 2 1 Communications Jammed . | . . . . . . . Distress Signals . | . . . . . . . Times Spotted 38 | 1 3 3 3 6 11 11 Peak Tracking Total 7 | 1 3 3 2 5 3 7 Tactical Retreats 3 | . . . . 1 1 1 Traps | -11 -10 -10 -9 -9 -8 -7 ------- Run | Yrd Mat Min Mat Min Mat Fac Traps Triggered 3 | . . . . . 1 2 Indirectly . | . . . . . . . Trap Hack Attempts . | . . . . . . . Triggered . | . . . . . . . Disarmed . | . . . . . . . Reprogrammed . | . . . . . . . Reused . | . . . . . . . Traps Extracted . | . . . . . . . Installed . | . . . . . . . Triggered . | . . . . . . . Machines | -11 -10 -10 -9 -9 -8 -7 ---------- Run | Yrd Mat Min Mat Min Mat Fac Machines Disabled 3 | . 2 . 1 . . . Max in Single Turn 2 | . 2 . . . . . Machines Repaired . | . . . . . . . Machines Dismantled . | . . . . . . . Machines Sabotaged . | . . . . . . . Overloaded Fab Kills . | . . . . . . . Hacking | -11 -10 -10 -9 -9 -8 -7 --------- Run | Yrd Mat Min Mat Min Mat Fac Machines Accessed 7 | . . 1 1 . 4 1 Terminals 5 | . . . 1 . 3 1 Fabricators . | . . . . . . . Repair Stations . | . . . . . . . Recycling Units 1 | . . . . . 1 . Scanalyzers . | . . . . . . . Garrison Access . | . . . . . . . Total Hacks 8 | . . 1 1 . 5 1 Successful 5 | . . 1 1 . 3 . Failed 3 | . . . . . 2 1 Catastrophic 3 | . . . . . 2 1 Database Lockouts . | . . . . . . . Manual . | . . . . . . . Terminals 6 | . . . 1 . 4 1 Fabricators . | . . . . . . . Repair Stations . | . . . . . . . Recycling Units 1 | . . . . . 1 . Scanalyzers . | . . . . . . . Garrison Access . | . . . . . . . Terminal Hacks 4 | . . 1 1 . 2 . Record 1 | . . . . . 1 . Open Door 1 | . . 1 . . . . Alert Level 1 | . . . 1 . . . Dispatch Records 1 | . . . . . 1 . Fabricator Hacks . | . . . . . . . Repair Station Hacks . | . . . . . . . Recycling Unit Hacks 1 | . . . . . 1 . Process 1 | . . . . . 1 . Scanalyzer . | . . . . . . . Garrison Access Hacks . | . . . . . . . Unauthorized Hacks . | . . . . . . . Terminals . | . . . . . . . Fabricators . | . . . . . . . Repair Stations . | . . . . . . . Recycling Units . | . . . . . . . Scanalyzers . | . . . . . . . Garrison Access . | . . . . . . . Data Cores Recovered . | . . . . . . . Used . | . . . . . . . Hacking Detections 5 | . . . 1 . 3 1 Full Trace Events . | . . . . . . . Feedback Events . | . . . . . . . Feedback Blocked . | . . . . . . . Robot Schematics Acquired . | . . . . . . . Robots Built . | . . . . . . . Authchips . | . . . . . . . Time . | . . . . . . . Total Robot Build Rating . | . . . . . . . Part Schematics Acquired . | . . . . . . . Parts Built . | . . . . . . . Authchips . | . . . . . . . Time . | . . . . . . . Total Part Build Rating . | . . . . . . . Parts Repaired . | . . . . . . . Time . | . . . . . . . Parts Recycled . | . . . . . . . Recycled Matter 4 | . . . . . 4 . Retrieved Matter . | . . . . . . . Retrieved Components . | . . . . . . . Parts Scanalyzed . | . . . . . . . Part Schematics Acquired . | . . . . . . . Parts Damaged . | . . . . . . . Bothacking | -11 -10 -10 -9 -9 -8 -7 ------------ Run | Yrd Mat Min Mat Min Mat Fac Used RIF Installer . | . . . . . . . Robots Hacked . | . . . . . . . Non-combat . | . . . . . . . Combat . | . . . . . . . Robot Hacks Applied . | . . . . . . . Relay Couplers Released . | . . . . . . . Fabnet Peak Effective % . | . . . . . . . Robots Rewired . | . . . . . . . Allies Hacked . | . . . . . . . Hacks Repelled . | . . . . . . . Allies | -11 -10 -10 -9 -9 -8 -7 -------- Run | Yrd Mat Min Mat Min Mat Fac Total Allies 1 | . . 1 . . . . Largest Group 1 | . . 1 1 1 . . Highest-Rated Group 31 | . . 31 31 31 . . Highest-Rated Ally 31 | . . 31 31 31 . . Total Orders . | . . . . . . . Ally Attacks 20 | . . . 7 4 9 . Total Damage 81 | . . . 81 . . . Kills 2 | . . . 2 . . . Allies Corrupted 1 | . . . . . 1 . Allies Melted . | . . . . . . . Intel | -11 -10 -10 -9 -9 -8 -7 ------- Run | Yrd Mat Min Mat Min Mat Fac Robot Analysis Total . | . . . . . . . Derelict Logs Recovered 1 | . . . . 1 . . Drone Launches 16 | . . . . 16 . . Drone Recoveries 2 | . . . . . 2 . Exploration | -11 -10 -10 -9 -9 -8 -7 ------------- Run | Yrd Mat Min Mat Min Mat Fac Turns Passed 2690 | 131 149 791 120 401 608 490 Spaces Moved 1845 | 100 92 644 77 198 359 375 Core 142 | 19 . . . . . 123 Treads 564 | . . . . . 312 252 Legs 313 | 81 92 140 . . . . Wheels 14 | . . 14 . . . . Hover . | . . . . . . . Flight 812 | . . 490 77 198 47 . Fastest Speed 50 | 50 120 80 117 197 114 50 Average Speed 135 | 106 120 116 152 197 153 123 Slowest Speed 197 | 120 120 120 197 197 160 160 Overloaded Moves . | . . . . . . . Propulsion Burnouts . | . . . . . . . Robots Hopped . | . . . . . . . Cave-ins Triggered 1 | . . . . . 1 . Exploration Rate (%) 28 | 9 22 88 13 36 26 8 Regions Visited 6 Branch Regions 2 Pre-discovered Areas . | . . . . . . . Known Exits Taken . | . . . . . . . Unknown Exits Taken 6 | 1 1 1 1 1 1 . Scrap Searched 1 | . . 1 . . . . Spaces Dug . | . . . . . . . Terrain Destroyed 21 | . 21 . . . . . Melee . | . . . . . . . Projectile . | . . . . . . . AOE 21 | . 21 . . . . . Terrain Rammed . | . . . . . . . Walls Destroyed . | . . . . . . . Machines Disabled . | . . . . . . . Actions | -11 -10 -10 -9 -9 -8 -7 --------- Run | Yrd Mat Min Mat Min Mat Fac Total 1984 | 114 111 674 80 207 407 391 Wait 1 | . . . . . 1 . Move 1838 | 99 91 643 76 197 357 375 Hop . | . . . . . . . Pick Up 34 | 5 3 4 2 3 12 5 Fast Attach 10 | 4 2 . 1 . 3 . Attach 20 | 1 1 4 1 3 8 2 Detach 5 | . . 3 . 1 1 . Swap 8 | . 1 1 . 2 3 1 Drop 24 | . . 10 . . 14 . Fire 38 | 5 12 9 . 1 7 4 Melee . | . . . . . . . Ram 4 | . . . . . . 4 Kick 1 | . 1 . . . . . Crush . | . . . . . . . Escape Stasis 1 | . . . . . 1 . Rewire . | . . . . . . . Trap . | . . . . . . . Miscellaneous . | . . . . . . . Route ------- -11/Scrapyard -10/Materials -10/Mines -9/Materials -9/Mines -8/Materials -7/Factory History --------- Turn | Location | Event 2 | -11/Scrapyard | Met Revision 17 96 | -11/Scrapyard | Discovered new exit (range 8) 132 | -11/Scrapyard | Entered Materials 208 | -10/Materials | Discovered new exit (range 15) 281 | -10/Materials | Entered Mines 301 | -10/Mines | Build established: Mutant 591 | -10/Mines | Found the Drone Emporium 596 | -10/Mines | Found Prototype Device 599 | -10/Mines | Identified Bomb Drone Bay 748 | -10/Mines | Found a damaged Exp. Sensor Array with a note attached 751 | -10/Mines | Found Prototype Device 1049 | -10/Mines | Discovered new exit (range 12) 1053 | -10/Mines | Received a Mining Laser from a helpful Derelict 1072 | -10/Mines | Entered Materials 1072 | -9/Materials | Accompanied by 1 ally 1072 | -9/Materials | Evolved 2 slots: Utility x2 1072 | -9/Materials | Identified Exp. Sensor Array 1141 | -9/Materials | Discovered new exit (range 14) 1192 | -9/Materials | Entered Mines 1192 | -9/Mines | Accompanied by 1 ally 1204 | -9/Mines | Learned Materials emergency access door positions 1236 | -9/Mines | Met a Derelict bent on vengeance 1562 | -9/Mines | Discovered new exit (range 11) 1569 | -9/Mines | Lost 3 allies 1593 | -9/Mines | Entered Materials 1593 | -8/Materials | Accompanied by 12 allies 1593 | -8/Materials | Evolved 2 slots: Power x1, Propulsion x1 1898 | -8/Materials | Lost 3 allies 1993 | -8/Materials | Crushed by falling debris 2017 | -8/Materials | Lost 4 allies 2176 | -8/Materials | Discovered new exit (range 16) 2201 | -8/Materials | Entered Factory 2201 | -7/Factory | Evolved 2 slots: Propulsion x1, Utility x1 2626 | -7/Factory | Released all parts (11) 2677 | -7/Factory | Core integrity fell below 50% 2686 | -7/Factory | Core integrity fell below 20% 2691 | -7/Factory | Destroyed by G-47 Trooper with Particle Gun Last Messages --------------- Imp. Spread Laser broken. Overheating: Short circuit. Released Broken Imp. Spread Laser. Released Gatling Laser. Released Imp. Light Armor Plating. Released Lgt. Deuterium Engine. Released Med. Treads. Released Ion Engine. Released Imp. Light Armor Plating. Released Med. Treads. L-41 Fighter destroyed. Triggered Alarm Trap. An alarm sounds. ALERT: Alarm triggered, dispatching investigation squad. Slammed into K-01 Serf. K-01 Serf knocked back. Slammed into K-01 Serf. Slammed into Y-54 Guardian. Critical hit (Burn: +37). [Achievement: First Step to Greatness] Map ----- +----------------------------------------------------+ | ??????????????????????????????????????????? | | ??????????????????????????????????????????? !!! | | ???????????????????????????????????????????# !! | | ???????????????????????????????????????????# !! | | ???????????????????????????????????????????# | | ???????????????????????????????????????????#[!! | | ????????????????????????????????????########[!! | | ???????????????????????############## #[! | | ???????????????????????# # # | | ???????????????????????# """"""""" # """ + ! | | ???????????????????????# # """ #=%* | | ???????????????????????# """"""""" # """ #!*=! | | ???????????????????????# # #[[= # | | ???????????????????????# """"""""" ####+###!= # | | ???????????????????????# #??# #?#*! # | | ???????????????????????# """"""""" #??# #?# # | | ???????????????????????# #??# ### # | | ???????????????????????# ""T"" #??# # | | ???????????????????????# """"" #??# | | ???????????????????????# #??# | | ???????????????????????######Y#######??# | | ?????????????????????????# ####### | | ??????????########+####### u | | ??????????# ############### | | ????????? #?????????????# | | ????????? w @ r#?????????????# | | ?????????? """ ###### ### #?????????????##+ | | ????????????"????????# ??# #????????????? | | ?????????????????????#???###g g###??????????? | | ???????????????????????????# g #???????? ?? | | ???????????????????????????+ #???????? | | ???????????????????????????# #???????# | | ???????????????????????????# #???????# | | ???????????????????????????# #???????# | | ???????????????????????????# #???????# | | ???????????????????????????# #???????# | | ???????????????????????????# #???????# | | ???????????????????????????# #???????# | | ???????????????????????????? #???????# | | ???????????????????????????? #???????#######?### | | ???????????????????????????? ??????????????????? | | ?????????????????????????????????????????????????? | | ?????????????????????????????????????????????????? | | ?????????????????????????????????????????????????? | | ?????????????????????????????????????????????????? | | ?????????????????????????????????????????????????? | | ?????????????????????????????????????????????????? | | ?????????????????????????????????????????????????? | | ?????????????????????????????????????????????????? | | ?????????????????????????????????????????????????? | +----------------------------------------------------+ Best States ------------- Heat Dissipation 34 Energy Generation 19 Energy Capacity 400 Matter Stores 300 Matter Capacity 400 Sight Range 16 Robot Scan Range 20 Terrain Scan Density 10 Armor Coverage 450 Evasion (%) 55 Recoil Reduction 4 Item Schematics ----------------- None Robot Schematics ------------------ None Fabricated ------------ Nothing Alien Tech Used ----------------- None Achievements -------------- First Step to Greatness Made in Tau Ceti IV Release The Drones! Risk Taker Serviceable Loadout Storm Trooper Uninvited Guest Unlikely Earthworm Challenges ------------ None Game ------ Seed SapperLightKinecellerator Manual? 0 Play Time 00:54:40 Cumulative 0.8 hours Start 2024.04.12 @ 21:44:06 End 2024.04.12 @ 22:43:13 Sessions 1 Manual Loads 0 Difficulty Rogue Special Mode None Game No. 1 Rogue 1 Adventurer 0 Explorer 0 Win Type - Total 0 Types 0/0/0/0/0/0/0/0/0 Lore% 0 Gallery% 1 Achievement% 3 Wizard Run 0 Options --------- Layout 1 ASCII 0 Keyboard 1 Movement Vi Keybinds 0 Fullscreen 1 Font 32/Terminus Map View 77x35 Zoom Use 0% Tactical HUD 0 Map Filters NONE Filters NONE Steam 1 RUN: 0332e79b-38b7-494b-934c-138ee9cceb13